bitfinex/quotes_SOLUSD_20250106
["timestamp","ask_amount","ask_price","bid_price","bid_amount"]
[1736202013576,8.85033519,218.32,218.24,8.84513749]
[1736202013741,8.84513749,218.31,218.24,8.84513749]
[1736202013946,7.9913,218.32,218.24,8.84513749]
[1736202014173,8.84513749,218.31,218.24,8.84513749]
[1736202014349,8.84513749,218.31,218.21,11.4565]
[1736202014350,1.5313,218.32,218.28,8.84513749]
[1736202014659,1.5313,218.32,218.29,8.84513749]
[1736202015363,1.5313,218.32,218.28,8.84513749]
[1736202017359,1.5313,218.32,218.29,28.84513749]
[1736202020555,1.5313,218.32,218.29,20.0]
[1736202022476,1.5313,218.32,218.22,23.776884]
[1736202022685,1.5313,218.32,218.26,8.84513749]
[1736202022856,2.39022577,218.32,218.26,8.84513749]
[1736202023759,2.39022577,218.32,218.26,28.84513749]
[1736202025386,2.39022577,218.32,218.26,20.0]
[1736202025978,8.84513749,218.3,218.22,8.84513749]
[1736202026781,8.84513749,218.3,218.2,2.02]
[1736202026782,8.84513749,218.3,218.23,8.84513749]
[1736202027873,8.84513749,218.3,218.22,8.84513749]
[1736202028492,8.84513749,218.3,218.23,8.84513749]
[1736202029686,1.5313,218.32,218.25,8.84513749]
[1736202029996,1.5313,218.32,218.26,8.84513749]
[1736202030286,2.39019817,218.32,218.25,28.84513749]
[1736202030495,11.23533566,218.32,218.25,20.0]
[1736202035079,11.23533566,218.32,218.27,20.0]
[1736202035282,11.23533566,218.32,218.25,20.0]
[1736202035283,1.5313,218.32,218.28,8.84513749]
[1736202035671,1.5313,218.32,218.25,11.4543]
[1736202035672,8.84513749,218.31,218.25,11.4543]
[1736202037586,8.84513749,218.31,218.24,20.0]
[1736202037894,8.84513749,218.31,218.25,20.0]
[1736202039697,8.84513749,218.29,218.25,20.0]
[1736202049299,8.84513749,218.28,218.25,20.0]
[1736202052699,1.5313,218.32,218.27,20.0]
[1736202053415,10.37643749,218.32,218.28,20.0]
[1736202053805,8.84513749,218.31,218.28,20.0]
[1736202058411,1.5313,218.32,218.28,20.0]
[1736202059009,10.37643749,218.32,218.28,20.0]
[1736202068521,8.84513749,218.29,218.28,20.0]
[1736202070824,1.5251,218.37,218.29,20.0]
[1736202071007,8.84513749,218.34,218.29,20.0]
[1736202072144,8.84513749,218.3,218.2,2.02]
[1736202072305,8.84513749,218.28,218.2,10.86513749]
[1736202072502,8.84513749,218.3,218.22,8.84513749]
[1736202072704,8.84513749,218.3,218.25,20.0]
[1736202073311,0.8589523,218.34,218.25,20.0]
[1736202073625,8.84513749,218.32,218.25,20.0]
[1736202080621,1.5251,218.37,218.26,8.84513749]
[1736202080812,1.5251,218.37,218.29,20.0]
[1736202081019,8.84513749,218.36,218.29,20.0]
[1736202081414,1.5251,218.37,218.28,8.84513749]
[1736202081619,8.84513749,218.36,218.28,8.84513749]
[1736202092119,1.5251,218.37,218.28,8.84513749]
[1736202092422,10.37023749,218.37,218.28,8.84513749]
[1736202092624,10.37023749,218.37,218.3,28.84513749]
[1736202094356,1.5251,218.37,218.3,28.84513749]
[1736202094850,2.3838311,218.37,218.3,28.84513749]
[1736202096041,0.85872892,218.38,218.3,28.84513749]
[1736202096267,8.84513749,218.38,218.3,28.84513749]
[1736202096433,0.85867981,218.41,218.33,8.84513749]
[1736202096637,9.7038173,218.41,218.33,8.84513749]
[1736202096856,0.85867981,218.41,218.34,8.84513749]
[1736202098348,9.7038173,218.41,218.33,8.84513749]
[1736202099669,0.85867981,218.41,218.34,8.84513749]
[1736202099828,10.36243749,218.42,218.35,8.84513749]
[1736202100156,8.84513749,218.45,218.37,8.84513749]
[1736202100356,8.84513749,218.45,218.38,8.84513749]
[1736202101243,2.49269938,218.47,218.39,8.84513749]
[1736202101431,10.47943749,218.47,218.39,8.84513749]
[1736202102444,1.6343,218.47,218.41,8.84513749]
[1736202103453,8.84513749,218.48,218.41,8.84513749]
[1736202104409,0.85831781,218.5,218.41,8.84513749]
[1736202104666,8.84513749,218.48,218.41,8.84513749]
[1736202107159,8.84513749,218.47,218.4,28.84513749]
[1736202109665,8.84513749,218.47,218.4,20.0]
[1736202109870,8.84513749,218.47,218.4,28.84513749]
[1736202111382,8.84513749,218.48,218.4,28.84513749]
[1736202115490,8.84513749,218.48,218.41,8.84513749]
[1736202116385,8.84513749,218.48,218.4,20.0]
[1736202116548,8.84513749,218.48,218.41,8.84513749]
[1736202118090,0.85831781,218.5,218.41,8.84513749]
[1736202118247,8.84513749,218.46,218.4,20.0]
[1736202118757,0.85831781,218.5,218.4,20.0]
[1736202118958,8.84513749,218.46,218.4,20.0]
[1736202121897,6.0478,218.51,218.4,20.0]
[1736202121898,9.70347895,218.45,218.4,20.0]
[1736202122254,8.84513749,218.44,218.4,20.0]
[1736202123980,8.84513749,218.45,218.4,20.0]
[1736202124368,8.84513749,218.46,218.4,20.0]
[1736202124569,0.85841201,218.45,218.4,20.0]
[1736202126094,9.7035495,218.45,218.4,20.0]
[1736202135686,0.85841201,218.45,218.4,20.0]
[1736202135888,8.84513749,218.45,218.4,20.0]
[1736202136092,0.85845134,218.44,218.4,20.0]
[1736202142274,9.70358883,218.44,218.4,20.0]
[1736202142494,8.84513749,218.43,218.4,20.0]
[1736202146588,8.84513749,218.44,218.4,20.0]
[1736202146790,0.85850659,218.43,218.4,20.0]
[1736202149591,0.85848788,218.44,218.4,20.0]
[1736202154181,8.84513749,218.43,218.37,11.4479]
[1736202154501,23.776884,218.49,218.33,11.45]
[1736202154502,8.84513749,218.4,218.33,11.45]
[1736202154685,0.85865289,218.39,218.33,11.45]
[1736202155211,9.70379038,218.39,218.33,11.45]
[1736202160618,8.84513749,218.38,218.33,11.45]
[1736202167614,8.84513749,218.37,218.33,11.45]
[1736202168615,8.84513749,218.34,218.26,11.4542]
[1736202168925,9.70403285,218.33,218.26,11.4542]
[1736202169225,9.70403285,218.33,218.29,20.0]
[1736202171304,8.84513749,218.33,218.29,20.0]
[1736202172729,8.84513749,218.34,218.29,20.0]
[1736202176512,0.85887373,218.33,218.29,20.0]
[1736202176909,8.84513749,218.34,218.29,20.0]
[1736202177220,2.48798131,218.39,218.29,20.0]
[1736202177425,8.84513749,218.34,218.29,20.0]
[1736202183138,8.84513749,218.35,218.29,20.0]
[1736202183466,0.85885211,218.34,218.29,20.0]
[1736202188143,0.8588579,218.38,218.29,20.0]
[1736202188344,8.84513749,218.35,218.29,20.0]
[1736202188547,0.8588597,218.34,218.29,20.0]
[1736202189237,9.70399719,218.34,218.29,20.0]
[1736202190042,0.8588597,218.34,218.29,20.0]
[1736202196334,0.85887913,218.38,218.3,8.84513749]
[1736202196538,8.84513749,218.37,218.3,8.84513749]
[1736202197236,9.70387701,218.37,218.3,8.84513749]
[1736202198144,9.70387701,218.37,218.29,40.29753749]
[1736202198349,0.85877228,218.36,218.29,40.29753749]
[1736202198543,9.70390977,218.36,218.29,40.29753749]
[1736202199947,0.85876829,218.4,218.34,8.84513749]
[1736202200254,9.70371532,218.43,218.35,8.84513749]
[1736202201855,0.85857783,218.43,218.35,8.84513749]
[1736202202055,9.70371532,218.43,218.36,8.84513749]
[1736202203452,8.84513749,218.42,218.35,8.84513749]
[1736202203653,9.70367055,218.42,218.35,8.84513749]
[1736202204645,9.70367055,218.42,218.33,28.84513749]
[1736202204646,8.84513749,218.4,218.33,28.84513749]
[1736202205148,8.84513749,218.4,218.33,20.0]
[1736202208131,8.84513749,218.4,218.33,28.84513749]
[1736202209963,8.84513749,218.41,218.34,8.84513749]
[1736202210141,1.61,218.44,218.34,8.84513749]
[1736202210336,8.84513749,218.42,218.34,8.84513749]
[1736202210851,8.84513749,218.41,218.34,8.84513749]
[1736202211053,8.84513749,218.41,218.33,28.84513749]
[1736202213651,8.84513749,218.41,218.34,8.84513749]
[1736202218079,8.84513749,218.41,218.33,28.84513749]
[1736202218261,8.84513749,218.41,218.34,8.84513749]
[1736202220680,0.85862983,218.4,218.34,8.84513749]
[1736202227649,0.85862983,218.4,218.35,8.84513749]
[1736202227850,0.85862952,218.41,218.35,8.84513749]
[1736202230975,1.61,218.44,218.35,8.84513749]
[1736202231300,9.70370631,218.43,218.35,8.84513749]
[1736202232860,0.85856882,218.43,218.35,8.84513749]
[1736202233084,2.46856236,218.44,218.35,8.84513749]
[1736202233384,11.31369985,218.44,218.35,8.84513749]
[1736202235082,2.46856236,218.44,218.35,8.84513749]
[1736202235381,1.61,218.44,218.35,8.84513749]
[1736202235583,1.61,218.44,218.37,8.84513749]
[1736202236195,0.85847937,218.46,218.37,8.84513749]
[1736202236481,8.84513749,218.46,218.37,8.84513749]
[1736202236854,8.84513749,218.46,218.38,8.84513749]
[1736202239361,9.7035254,218.47,218.39,8.84513749]
[1736202239558,8.84513749,218.46,218.39,8.84513749]
[1736202239758,9.70350251,218.46,218.39,8.84513749]
[1736202239970,8.84513749,218.46,218.39,8.84513749]
[1736202240166,8.84513749,218.45,218.38,8.84513749]
[1736202240460,8.84513749,218.45,218.37,8.84513749]
[1736202240673,8.84513749,218.43,218.36,8.84513749]
[1736202241085,8.84513749,218.44,218.36,8.84513749]
[1736202241304,8.84513749,218.45,218.37,8.84513749]
[1736202242294,0.85847406,218.48,218.37,8.84513749]
[1736202242495,8.84513749,218.45,218.37,8.84513749]
[1736202243399,0.85844266,218.44,218.37,8.84513749]
[1736202244305,0.85844266,218.44,218.38,20.0]
[1736202247466,9.70358015,218.44,218.38,20.0]
[1736202248588,8.84513749,218.44,218.38,20.0]
[1736202250596,0.85845575,218.48,218.38,20.0]
[1736202250824,8.84513749,218.45,218.38,28.84513749]
[1736202251547,8.84513749,218.45,218.33,23.776884]
[1736202251548,0.85845575,218.48,218.39,8.84513749]
[1736202251933,8.84513749,218.47,218.39,8.84513749]
[1736202252065,8.84513749,218.47,218.4,8.84513749]
[1736202252268,0.85845575,218.48,218.4,8.84513749]
[1736202252494,8.84513749,218.47,218.4,8.84513749]
[1736202254790,9.70359324,218.48,218.4,8.84513749]
[1736202255108,16.0037478,218.49,218.42,8.84513749]
[1736202255493,7.15861031,218.49,218.42,8.84513749]
[1736202255672,9.7034478,218.49,218.42,8.84513749]
[1736202255871,8.84513749,218.52,218.45,8.84513749]
[1736202256513,8.84513749,218.51,218.44,8.84513749]
[1736202256868,8.84513749,218.52,218.45,8.84513749]
[1736202257067,8.84513749,218.52,218.46,20.0]
[1736202257666,7.44550934,218.54,218.47,8.84513749]
[1736202257890,8.84513749,218.53,218.46,28.84513749]
[1736202259688,8.84513749,218.52,218.46,20.0]
[1736202263908,9.70325965,218.51,218.45,8.84513749]
[1736202264512,9.70325965,218.51,218.42,20.0]
[1736202264513,0.85812216,218.51,218.42,20.0]
[1736202264719,8.84513749,218.48,218.42,28.84513749]
[1736202264921,8.84513749,218.49,218.42,28.84513749]
[1736202266418,9.70339303,218.48,218.41,8.84513749]
[1736202267013,9.70339303,218.48,218.39,20.0]
[1736202267212,9.70339303,218.48,218.41,8.84513749]
[1736202269525,8.84513749,218.46,218.4,8.84513749]
[1736202271222,2.45876055,218.49,218.4,8.84513749]
[1736202271440,8.84513749,218.46,218.39,28.84513749]
[1736202273231,8.84513749,218.46,218.39,20.0]
[1736202273430,8.84513749,218.46,218.39,28.84513749]
[1736202284714,8.84513749,218.47,218.39,20.0]
[1736202284908,8.84513749,218.44,218.39,20.0]
[1736202288030,18.62166226,218.53,218.33,11.4504]
[1736202288031,8.84513749,218.42,218.33,11.4504]
[1736202288235,8.84513749,218.4,218.33,11.4504]
[1736202288822,0.85861036,218.39,218.29,15.26189202]
[1736202289128,0.85861036,218.39,218.31,8.84513749]
[1736202289836,9.70374785,218.39,218.34,20.0]
[1736202290713,8.84513749,218.38,218.33,20.0]
[1736202291334,0.85872105,218.37,218.33,20.0]
[1736202291541,9.70385854,218.37,218.32,20.0]
[1736202292445,1.5468,218.36,218.26,5.80113575]
[1736202292619,8.84513749,218.34,218.26,8.84513749]
[1736202293647,9.70397983,218.34,218.29,20.0]
[1736202293936,9.70397983,218.34,218.27,8.84513749]
[1736202294415,8.84513749,218.34,218.28,20.0]
[1736202294619,8.84513749,218.35,218.28,28.84513749]
[1736202298337,8.84513749,218.34,218.28,20.0]
[1736202300349,8.84513749,218.32,218.22,2.0]
[1736202300657,1.5468,218.36,218.28,8.84513749]
[1736202300815,1.5468,218.36,218.22,13.4562]
[1736202300816,8.84513749,218.31,218.25,20.0]
[1736202301023,0.85893886,218.3,218.22,11.4562]
[1736202301263,0.85904131,218.33,218.22,11.4562]
[1736202301458,8.84513749,218.29,218.22,11.4562]
[1736202302236,0.85904131,218.33,218.18,2.0]
[1736202302237,0.85904131,218.33,218.24,8.84513749]
[1736202302435,0.85902043,218.34,218.26,8.84513749]
[1736202302747,8.84513749,218.33,218.26,8.84513749]
[1736202304348,8.84513749,218.32,218.24,11.4547]
[1736202304648,8.84513749,218.32,218.25,8.84513749]
[1736202311555,8.84513749,218.33,218.25,8.84513749]
[1736202313174,8.84513749,218.32,218.25,8.84513749]
[1736202313868,8.84513749,218.32,218.24,11.4547]
[1736202313869,8.84513749,218.31,218.24,11.4547]
[1736202314044,8.84513749,218.31,218.24,20.29983749]
[1736202314563,8.84513749,218.31,218.24,11.4547]
[1736202315369,8.84513749,218.3,218.24,11.4547]
[1736202318463,8.84513749,218.28,218.21,11.4567]
[1736202319947,10.34523749,218.29,218.21,20.30183749]
[1736202320772,0.8590619,218.28,218.21,20.30183749]
[1736202321068,9.70419939,218.28,218.21,20.30183749]
[1736202321245,8.84513749,218.27,218.18,11.4583]
[1736202321445,8.84513749,218.27,218.2,8.84513749]
[1736202321867,9.70428214,218.27,218.2,8.84513749]
[1736202322882,8.84513749,218.27,218.2,8.84513749]
[1736202323568,0.85914423,218.26,218.21,20.0]
[1736202323748,8.84513749,218.25,218.18,11.4583]
[1736202323950,8.84513749,218.25,218.18,20.30343749]
[1736202324159,0.85922688,218.24,218.18,20.0]
[1736202324357,0.85922688,218.24,218.18,28.84513749]
[1736202325453,0.85922688,218.24,218.18,20.0]
[1736202325663,0.85922688,218.24,218.16,8.84513749]
[1736202325872,1.6633,218.23,218.16,8.84513749]
[1736202326665,1.6633,218.23,218.18,8.84513749]
[1736202327975,1.6633,218.23,218.17,8.84513749]
[1736202329609,1.6633,218.23,218.16,8.84513749]
[1736202330088,10.50843749,218.23,218.16,8.84513749]
[1736202330719,10.50843749,218.23,218.15,11.4598]
[1736202330893,10.50843749,218.23,218.16,8.84513749]
[1736202332692,0.8593027,218.22,218.16,8.84513749]
[1736202332873,0.8593027,218.22,218.15,20.30493749]
[1736202334277,8.84513749,218.21,218.12,13.4615]
[1736202334477,9.70454393,218.2,218.13,8.84513749]
[1736202334988,9.70454393,218.2,218.12,20.30663749]
[1736202336481,9.70454393,218.2,218.13,8.84513749]
[1736202340272,8.84513749,218.19,218.12,8.84513749]
[1736202343486,0.85945332,218.18,218.11,8.84513749]
[1736202344280,9.70459081,218.18,218.11,8.84513749]
[1736202345262,0.85945332,218.18,218.11,8.84513749]
[1736202348589,0.85945332,218.18,218.12,28.84513749]
[1736202349387,9.70459081,218.18,218.12,20.0]
[1736202351199,10.40003749,218.17,218.12,20.0]
[1736202351490,8.84513749,218.15,218.09,11.4631]
[1736202351689,0.85963645,218.14,218.09,11.4631]
[1736202352396,0.85963645,218.14,218.05,11.4652]
[1736202352571,0.85963645,218.14,218.08,8.84513749]
[1736202353417,0.85963645,218.14,218.05,11.4652]
[1736202353572,0.85963645,218.14,218.05,20.31033749]
[1736202353573,8.84513749,218.12,218.05,20.31033749]
[1736202354291,8.84513749,218.11,218.05,11.4652]
[1736202354473,10.45273749,218.11,218.05,11.4652]
[1736202357404,8.84513749,218.1,217.99,6.25657155]
[1736202357591,0.8597722,218.1,217.92,6.62309243]
[1736202357904,8.84513749,218.06,217.99,8.84513749]
[1736202358105,2.85998978,218.1,217.99,8.84513749]
[1736202358267,8.84513749,218.07,218.0,8.84513749]
[1736202358470,9.70512727,218.1,218.03,8.84513749]
[1736202358706,0.85998978,218.1,218.03,8.84513749]
[1736202358995,8.84513749,218.09,218.02,8.84513749]
[1736202359196,9.70498513,218.09,218.01,8.84513749]
[1736202359526,9.70498513,218.09,217.99,11.4679]
[1736202359527,0.85984764,218.09,217.99,11.4679]
[1736202359677,8.84513749,218.06,217.99,20.31303749]
[1736202360081,8.84513749,218.03,217.96,11.4699]
[1736202360287,8.84513749,218.03,217.96,20.31503749]
[1736202360488,1.6159,218.04,217.98,8.84513749]
[1736202361698,2.47590878,218.04,217.96,20.0]
[1736202361880,2.47590878,218.04,217.97,8.84513749]
[1736202365088,11.32104627,218.04,217.97,8.84513749]
[1736202365290,9.705181,218.03,217.96,28.84513749]
[1736202365989,8.84513749,218.02,217.96,20.0]
[1736202366201,0.86015393,218.01,217.95,8.84513749]
[1736202366426,0.86015393,218.01,217.94,8.84513749]
[1736202367307,9.70529178,218.02,217.94,8.84513749]
[1736202367779,9.70529178,218.02,217.95,8.84513749]
[1736202368290,8.84513749,218.02,217.95,8.84513749]
[1736202370537,8.84513749,218.03,217.96,8.84513749]
[1736202370687,0.86012083,218.02,217.96,8.84513749]
[1736202372011,9.70525832,218.02,217.95,8.84513749]
[1736202372809,9.70525832,218.02,217.93,11.4715]
[1736202372810,10.50813749,218.01,217.93,11.4715]
[1736202373010,10.50813749,218.01,217.94,8.84513749]
[1736202373597,10.50813749,218.01,217.93,11.4715]
[1736202373817,10.50813749,218.01,217.93,20.31663749]
[1736202373818,0.86016435,218.0,217.93,20.31663749]
[1736202374192,9.70530184,218.0,217.93,11.4715]
[1736202377029,9.70530184,218.0,217.93,20.31663749]
[1736202377201,8.84513749,217.99,217.93,11.4715]
[1736202378005,8.84513749,217.99,217.87,4.31345581]
[1736202378208,0.86025027,217.98,217.91,8.84513749]
[1736202378400,1.663,218.01,217.93,8.84513749]
[1736202378592,8.84513749,218.0,217.93,8.84513749]
[1736202378788,10.50813749,218.01,217.93,8.84513749]
[1736202379008,0.86020285,218.0,217.93,8.84513749]
[1736202379217,9.70534034,218.0,217.93,8.84513749]
[1736202379416,0.86020285,218.0,217.93,8.84513749]
[1736202379627,9.70534034,218.0,217.93,8.84513749]
[1736202379924,9.70534034,218.0,217.89,31.4732]
[1736202380517,9.70534034,218.0,217.93,8.84513749]
[1736202380832,9.70534034,218.0,217.92,8.84513749]
[1736202380833,8.84513749,217.99,217.92,8.84513749]
[1736202381330,1.5507,217.97,217.89,31.4732]
[1736202381565,0.86030723,217.96,217.85,8.84513749]
[1736202381731,8.84513749,217.93,217.8,11.4783]
[1736202382034,0.86054185,217.92,217.85,8.84513749]
[1736202382232,0.86059089,217.96,217.85,8.84513749]
[1736202382544,0.86059089,217.96,217.87,8.84513749]
[1736202382766,8.84513749,217.95,217.87,8.84513749]
[1736202383037,0.86043651,217.94,217.88,8.84513749]
[1736202383240,9.705574,217.94,217.86,8.84513749]
[1736202384335,8.84513749,217.93,217.86,8.84513749]
[1736202384547,0.86047576,217.92,217.85,8.84513749]
[1736202384724,0.86054632,217.96,217.89,8.84513749]
[1736202385221,8.84513749,217.94,217.86,20.0]
[1736202385445,8.84513749,217.94,217.87,8.84513749]
[1736202386538,8.84513749,217.94,217.86,28.84513749]
[1736202386714,0.86046178,217.93,217.86,28.84513749]
[1736202387039,0.86046178,217.93,217.86,8.84513749]
[1736202387232,9.70559927,217.93,217.86,8.84513749]
[1736202387438,8.84513749,217.92,217.85,8.84513749]
[1736202387621,0.86056739,217.91,217.84,8.84513749]
[1736202387820,1.5683,217.9,217.84,8.84513749]
[1736202390007,1.5683,217.9,217.81,2.22]
[1736202390213,9.70573874,217.89,217.79,11.4785]
[1736202390520,9.70573874,217.89,217.82,8.84513749]
[1736202391339,1.5683,217.9,217.79,11.4785]
[1736202391340,1.5683,217.9,217.84,8.84513749]
[1736202391518,2.42885955,217.9,217.84,8.84513749]
[1736202394240,2.42885955,217.9,217.79,11.4785]
[1736202394241,2.42885955,217.9,217.83,8.84513749]
[1736202395343,11.27399704,217.9,217.83,8.84513749]
[1736202397244,11.27399704,217.9,217.85,8.84513749]
[1736202397245,1.5683,217.9,217.85,8.84513749]
[1736202397865,1.5683,217.9,217.84,8.84513749]
[1736202398168,1.5683,217.9,217.83,8.84513749]
[1736202402455,10.41343749,217.9,217.83,8.84513749]
[1736202402969,11.27404338,217.9,217.83,8.84513749]
[1736202403965,11.27404338,217.9,217.79,11.4787]
[1736202404275,11.27404338,217.9,217.83,8.84513749]
[1736202405592,8.84513749,217.89,217.79,11.4787]
[1736202405871,9.7058429,217.88,217.81,8.84513749]
[1736202407358,8.84513749,217.87,217.8,8.84513749]
[1736202408380,0.86071457,217.88,217.8,8.84513749]
[1736202408582,8.84513749,217.87,217.8,8.84513749]
[1736202410755,8.84513749,217.86,217.8,8.84513749]
[1736202410956,8.84513749,217.86,217.79,28.84513749]
[1736202416186,8.84513749,217.86,217.8,8.84513749]
[1736202416687,8.84513749,217.87,217.81,8.84513749]
[1736202417187,8.84513749,217.87,217.79,20.0]
[1736202417396,8.84513749,217.87,217.81,8.84513749]
[1736202419371,9.70584367,217.86,217.8,8.84513749]
[1736202419899,9.70584367,217.86,217.78,11.479]
[1736202420066,8.84513749,217.85,217.79,8.84513749]
[1736202420383,8.84513749,217.86,217.8,8.84513749]
[1736202420586,8.84513749,217.86,217.78,11.479]
[1736202420890,8.84513749,217.86,217.8,8.84513749]
[1736202423385,8.84513749,217.87,217.8,8.84513749]
[1736202423597,0.86074172,217.88,217.82,8.84513749]
[1736202423787,1.5683,217.9,217.84,8.84513749]
[1736202424688,1.5683,217.9,217.89,8.84513749]
[1736202424888,1.5683,217.9,217.83,20.0]
[1736202425061,1.5683,217.9,217.87,8.84513749]
[1736202430798,0.86044513,218.0,217.9,11.4731]
[1736202431000,9.70534122,218.01,217.93,8.84513749]
[1736202431218,8.84513749,218.01,217.95,8.84513749]
[1736202431498,1.5788,218.02,217.95,8.84513749]
[1736202436986,10.42393749,218.02,217.95,8.84513749]
[1736202438505,1.5788,218.02,217.96,8.84513749]
[1736202438800,10.42393749,218.02,217.95,8.84513749]
[1736202439197,8.84513749,217.99,217.9,11.4731]
[1736202439405,8.84513749,217.99,217.91,8.84513749]
[1736202439903,8.84513749,217.99,217.92,8.84513749]
[1736202440284,8.84513749,217.99,217.9,11.4731]
[1736202440482,8.84513749,217.99,217.92,8.84513749]
[1736202441301,8.84513749,218.0,217.93,8.84513749]
[1736202443304,9.70531398,217.99,217.92,8.84513749]
[1736202443481,8.84513749,217.99,217.92,8.84513749]
[1736202448219,2.43902251,218.02,217.92,8.84513749]
[1736202448519,8.84513749,217.99,217.92,8.84513749]
[1736202450817,8.84513749,218.0,217.93,8.84513749]
[1736202451206,1.5788,218.02,217.94,8.84513749]
[1736202451416,8.84513749,218.01,217.94,8.84513749]
[1736202452424,1.5788,218.02,217.95,8.84513749]
[1736202452826,10.42393749,218.02,217.95,8.84513749]
[1736202453001,1.5788,218.02,217.95,8.84513749]
[1736202453337,10.42393749,218.02,217.95,8.84513749]
[1736202456209,1.5788,218.02,217.95,8.84513749]
[1736202456836,8.84513749,218.01,217.94,20.31563749]
[1736202463446,1.5788,218.02,217.94,20.31563749]
[1736202464237,1.5788,218.02,217.95,8.84513749]
[1736202466242,8.84513749,217.99,217.9,11.4731]
[1736202466454,8.84513749,217.99,217.91,8.84513749]
[1736202468249,8.84513749,217.98,217.91,8.84513749]
[1736202468925,8.84513749,217.98,217.9,11.4731]
[1736202469122,8.84513749,217.98,217.91,8.84513749]
[1736202469846,8.84513749,217.98,217.9,11.4731]
[1736202470046,8.84513749,217.98,217.91,8.84513749]
[1736202479744,8.84513749,217.98,217.92,8.84513749]
[1736202487563,8.84513749,217.97,217.91,8.84513749]
[1736202487754,8.84513749,217.98,217.91,8.84513749]
[1736202491785,8.84513749,217.97,217.91,8.84513749]
[1736202495874,8.84513749,217.98,217.91,8.84513749]
[1736202499659,8.84513749,217.98,217.9,11.4731]
[1736202499848,8.84513749,217.98,217.92,8.84513749]
[1736202504078,8.84513749,217.99,217.92,8.84513749]
[1736202504267,8.84513749,217.98,217.92,8.84513749]
[1736202513786,8.84513749,217.99,217.92,8.84513749]
[1736202516499,8.84513749,217.99,217.91,8.84513749]
[1736202519668,8.84513749,217.98,217.91,8.84513749]
[1736202522382,0.86024283,218.0,217.92,8.84513749]
[1736202522684,0.86024283,218.0,217.91,8.84513749]
[1736202522887,0.86024283,218.0,217.92,8.84513749]
[1736202523188,8.84513749,217.99,217.91,8.84513749]
[1736202523704,8.84513749,217.98,217.91,8.84513749]
[1736202527529,8.84513749,217.98,217.92,8.84513749]
[1736202530005,8.84513749,217.98,217.91,8.84513749]
[1736202530618,0.86024283,218.0,217.91,8.84513749]
[1736202530904,8.84513749,217.98,217.91,8.84513749]
[1736202535539,8.84513749,217.99,217.91,8.84513749]
[1736202538215,0.86026217,217.98,217.91,8.84513749]
[1736202539241,8.84513749,217.99,217.91,8.84513749]
[1736202539539,0.86026273,217.98,217.91,8.84513749]
[1736202539843,9.70540887,217.99,217.91,8.84513749]
[1736202543545,8.84513749,217.98,217.9,11.4731]
[1736202543844,9.70542757,217.98,217.9,20.31823749]
[1736202544736,8.84513749,217.98,217.91,8.84513749]
[1736202545041,8.84513749,217.99,217.92,8.84513749]
[1736202546846,0.86027959,218.0,217.92,8.84513749]
[1736202547024,8.84513749,217.99,217.92,8.84513749]
[1736202548847,8.84513749,217.99,217.91,8.84513749]
[1736202560434,8.84513749,217.99,217.9,11.4731]
[1736202560634,8.84513749,217.99,217.9,20.31823749]
[1736202562065,0.86027959,218.0,217.9,20.31823749]
[1736202562361,8.84513749,217.98,217.9,20.31823749]
[1736202579781,9.70541708,218.0,217.9,20.31823749]
[1736202579971,0.86025819,218.01,217.9,20.31823749]
[1736202580269,10.42393749,218.02,217.92,8.84513749]
[1736202580470,10.42393749,218.02,217.94,8.84513749]
[1736202580980,8.84513749,218.01,217.94,8.84513749]
[1736202581181,8.84513749,218.01,217.94,20.31603749]
[1736202581372,1.5788,218.02,217.95,8.84513749]
[1736202581879,1.5788,218.02,217.96,8.84513749]
[1736202583388,1.5788,218.02,217.98,8.84513749]
[1736202587476,1.5788,218.02,217.99,8.84513749]
[1736202587674,1.664,218.07,218.01,8.84513749]
[1736202587971,1.664,218.07,218.02,8.84513749]
[1736202593962,1.664,218.07,218.01,8.84513749]
[1736202596590,23.776884,218.12,218.02,8.84513749]
[1736202596782,8.84513749,218.09,218.02,8.84513749]
[1736202598297,1.5451,218.13,218.08,8.84513749]
[1736202598664,1.5451,218.13,218.07,8.84513749]
[1736202602267,10.39023749,218.13,218.07,8.84513749]
[1736202602472,1.5451,218.13,218.07,8.84513749]
[1736202602693,10.39023749,218.13,218.07,8.84513749]
[1736202604509,1.5451,218.13,218.07,8.84513749]
[1736202604686,1.5451,218.13,218.08,8.84513749]
[1736202613696,1.5803,218.18,218.09,20.0]
[1736202613922,10.42543749,218.18,218.12,8.84513749]
[1736202615179,1.5803,218.18,218.12,8.84513749]
[1736202615381,10.42543749,218.18,218.12,8.84513749]
[1736202616807,1.5803,218.18,218.12,8.84513749]
[1736202618407,10.42543749,218.18,218.12,8.84513749]